Cogmind - Beta 14 @@@ ROGUE MODE // 2024.09.30 @ 15:47:48 Player: Some Pennies Result: Destroyed by 6W-Y8M(R) with Subdweller Machine Gun Performance ------------- Evolutions (0) 0 Regions Visited (2) 400 Robots Destroyed (53) 265 Value Destroyed (1367) 1367 Prototype IDs (2) 40 Alien Tech Used (0) 0 Bonus (0) 0 TOTAL SCORE: 2072 Bonus ------- None Cogmind --------- Core Integrity 0/250 Matter 110/300 Energy 265/265 System Corruption 0% Temperature Cool (0) Movement Treading (360) Ox2 Location -10/Subcaves Parts ------- > --- POWER (1) -------- Improved Ion Engine > --- PROPULSION (2) --- Spiked Treads Spiked Treads > --- UTILITY (2) ------ Huge Storage Unit Makeshift Light Armor Plating > --- WEAPON (2) ------- Subdweller Laser Subdweller Shrapnel Launcher > --- INVENTORY (25) --- Improved Ion Engine Improved Ion Engine Spiked Treads Cargo Legs Subdweller Monowheel Subdweller Monowheel Heat Sink Medium Storage Unit High-capacity Matter Pod (200) Structural Scanner Signal Interpreter Improved Terrain Scanner Seismic Detector Transport Network Coupler Medium Laser Subdweller Laser Particle Cannon Particle Cannon Grenade Launcher Mining Laser Multitool Peak State ------------ > --- POWER ------------ Improved Ion Engine > --- PROPULSION ------- Spiked Treads Spiked Treads > --- UTILITY ---------- Huge Storage Unit Improved Terrain Scanner > --- WEAPON ----------- Subdweller Laser Subdweller Laser > --- INVENTORY -------- Improved Ion Engine Improved Ion Engine Spiked Treads Cargo Legs Subdweller Monowheel Subdweller Monowheel Heat Sink Medium Storage Unit High-capacity Matter Pod Structural Scanner Signal Interpreter Seismic Detector Transport Network Coupler Makeshift Light Armor Plating Medium Laser Subdweller Laser Particle Cannon Particle Cannon Grenade Launcher Subdweller Shrapnel Launcher Mining Laser Multitool [Rating: 19] Favorites ----------- Power Improved Ion Engine Engine Improved Ion Engine Propulsion Spiked Treads Treads Spiked Treads Utility Huge Storage Unit Device Improved Terrain Scanner Storage Huge Storage Unit Protection Medium Armor Plating Weapon Subdweller Laser Energy Gun Subdweller Laser Energy Cannon Particle Cannon Ballistic Gun Assault Rifle Launcher Grenade Launcher Special Weapon Mining Laser Build | -11 -10 -10 ------- Run | Yrd Mat Sub Slots Evolved . | . . . Power . | . . . Propulsion . | . . . Utility . | . . . Weapon . | . . . Parts Attached 61 | 7 13 41 Power 5 | 1 3 1 Engine 5 | 1 3 1 Core . | . . . Reactor . | . . . Propulsion 6 | 2 . 4 Treads 6 | 2 . 4 Leg . | . . . Wheel . | . . . Hover . | . . . Flight . | . . . Utility 27 | 2 4 21 Device 12 | 1 . 11 Storage 3 | 1 2 . Processor . | . . . Hackware . | . . . Protection 12 | . 2 10 Artifact . | . . . Weapon 23 | 2 6 15 Energy Gun 9 | 1 1 7 Energy Cannon 5 | . 2 3 Ballistic Gun 1 | 1 . . Ballistic Cannon . | . . . Launcher 7 | . 2 5 Special Weapon 1 | . 1 . Impact Weapon . | . . . Slashing Weapon . | . . . Piercing Weapon . | . . . Special Melee Weapon . | . . . Unidentified Prototypes . | . . . Parts Lost 8 | . 1 7 Power . | . . . Propulsion 2 | . . 2 Utility 5 | . 1 4 Weapon 1 | . . 1 Highest Loss Streak 2 | . 1 2 To Critical Strikes . | . . . Average Slot Usage (%) 99 | . 100 99 Engine 14 | . 14 14 Treads 28 | . 28 28 Device 10 | . 1 10 Storage 14 | . 14 14 Protection 3 | . 12 2 Energy Gun 20 | . 11 21 Energy Cannon 6 | . . 6 Ballistic Gun 1 | . 13 . Peak Build Rating 19 | 7 14 19 Average Rating 16 | 6 9 17 On Entrance 7 | . 7 14 Naked Turns . | . . . Heaviest Build 106 | 13 102 106 Greatest Support 40 | 40 40 40 Greatest Overweight (x) 2 | . 2 2 Average Overweight (x) 1 | . . 2 Largest Inventory Capacity 25 | 8 25 25 Average Capacity 24 | 7 19 25 Most Carried 25 | 5 24 25 Average Carried 21 | 3 13 23 Final Capacity 25 | 8 25 25 Final Carried 24 | 4 24 22 Class Distribution -------------------- 100% | Mutant Dominant Class ---------------- Mutant | -10/Materials Mutant | -10/Subcaves Resources | -11 -10 -10 ----------- Run | Yrd Mat Sub Matter Collected 1213 | 318 303 592 Remotely . | . . . Salvage Created 1740 | 188 625 927 Parts 121 | 11 55 55 Haulers Intercepted 1 | . 1 . Recyclers Shooed 2 | . 2 . Parts Field Recycled . | . . . Retrieved Matter . | . . . Parts Self-Destructed 7 | . . 7 Prevented . | . . . Kills | -11 -10 -10 ------- Run | Yrd Mat Sub Combat Hostiles Destroyed 39 | . 16 23 Guns 12 | . 10 2 Cannons 13 | . . 13 AOE 11 | . 6 5 Classes Destroyed 13 | 2 7 4 Worker 1 | . 1 . Builder 1 | . 1 . Tunneler 5 | 4 1 . Hauler 1 | . 1 . Recycler 2 | 1 1 . Operator 1 | . 1 . Watcher 3 | . 3 . Swarmer 9 | . 6 3 Grunt 10 | . 10 . Sentry 1 | . . 1 Artisan 1 | . . 1 Cobbler 1 | . . 1 Subdweller 19 | . . 19 Best Kill Streak 6 | 3 6 3 Combat Bots Only 4 | . 4 3 Max Kills in Single Turn 3 | 1 2 3 Gunslinging 1 | . 1 . Exploded 3 | . 2 3 Melee . | . . . Uniques/NPCs Destroyed . | . . . Combat | -11 -10 -10 -------- Run | Yrd Mat Sub Hostile Shots Fired 154 | . 62 92 Missed 46 | . 18 28 Damage Taken 1807 | . 476 1331 Core 260 | . 63 197 Absorbed by Shields . | . . . Core Remaining (%) 100 | 100 . . Volleys Fired 207 | 16 59 132 Largest 2 | 2 2 2 Hottest 148 | 70 100 148 Shots Fired 355 | 32 107 216 Gun 203 | 32 96 75 Cannon 132 | . . 132 Launcher 19 | . 10 9 Special 1 | . 1 . Kinetic 70 | 16 51 3 Thermal 269 | 16 46 207 Explosive 16 | . 10 6 Electromagnetic . | . . . Robot Hit Streak 16 | 5 9 16 Robot Miss Streak 4 | 2 4 2 Penetration Max . | . . . Secondary Targets 1 | . 1 . Max Gunslinging Chain 1 | . 1 . Shots Hit Robots 173 | 20 64 89 Core Hits 80 | 6 40 34 Critical Kills 4 | . 1 3 Critical Parts Destroyed . | . . . Critical Strikes 5 | 1 1 3 Burn 1 | 1 . . Meltdown 3 | . . 3 Destroy 1 | . 1 . Melee Attacks . | . . . Impact . | . . . Slashing . | . . . Piercing . | . . . Sneak Attacks . | . . . Combat Hostiles . | . . . Follow-up Attacks . | . . . Damage Inflicted 3843 | 254 1347 2242 Guns 1192 | 254 754 184 Cannons 1661 | . . 1661 Explosions 984 | . 587 397 Melee . | . . . Ramming 6 | . 6 . Kinetic 837 | 165 378 294 Thermal 2310 | 89 376 1845 Explosive 690 | . 587 103 Electromagnetic . | . . . Impact . | . . . Slashing . | . . . Piercing . | . . . Highest Corruption . | . . . Average Corruption . | . . . Corruption Purged . | . . . Corruption Blocked . | . . . Overload Shots . | . . . Overflow Damage 13 | . 8 5 Projectiles 5 | . . 5 Explosions 8 | . 8 . Melee . | . . . Knockbacks . | . . . Impact . | . . . Kinetic . | . . . Secondary . | . . . Self-Inflicted Damage 37 | . . 37 Shots 1 | . . 1 Rammed 1 | . 1 . Targets Rammed 1 | . 1 . Kicked . | . . . Crushed . | . . . Highest Temperature 266 | 54 213 266 Average Temperature 46 | 17 45 52 Received Heat Transfer 420 | . 240 180 Siege Activations . | . . . Robots Corrupted . | . . . Combat Hostiles . | . . . Parts Fried . | . . . Impact Corruptions . | . . . Robots Melted 3 | . . 3 Combat Hostiles 3 | . . 3 Parts Melted 11 | 1 . 10 Heat Transferred 4406 | 333 1110 2963 Parts Sabotaged . | . . . Parts Stolen . | . . . Parts Stripped . | . . . Power Chain Reactions . | . . . Alert | -11 -10 -10 ------- Run | Yrd Mat Sub Peak Influence 350 | 25 350 . Initial 16 | . 16 . Average 159 | 13 188 . Maximum Alert Level 1 | . 1 . Low Security (%) 58 | 100 49 . Level 1 41 | . 50 . Level 2 . | . . . Level 3 . | . . . Level 4 . | . . . Level 5 . | . . . High Security . | . . . Max Security . | . . . Squads Dispatched 3 | . 3 . Investigation 2 | . 2 . Extermination . | . . . Reinforcement 1 | . 1 . Assault . | . . . Garrison . | . . . Intercept . | . . . Searches Triggered . | . . . Construction Impeded . | . . . Haulers Reinforced . | . . . Active Scanning Responses . | . . . Cargo Convoy Interrupts . | . . . Stealth | -11 -10 -10 --------- Run | Yrd Mat Sub Distress Signals 1 | . 1 . Communications Jammed . | . . . Distress Signals . | . . . Times Spotted 48 | . 23 25 Peak Tracking Total 5 | . 5 3 Tactical Retreats 4 | . 4 . Traps | -11 -10 -10 ------- Run | Yrd Mat Sub Traps Triggered 1 | . 1 . Indirectly . | . . . Trap Hack Attempts . | . . . Triggered . | . . . Disarmed . | . . . Reprogrammed . | . . . Reused . | . . . Traps Extracted . | . . . Installed . | . . . Triggered . | . . . Machines | -11 -10 -10 ---------- Run | Yrd Mat Sub Machines Disabled . | . . . Max in Single Turn . | . . . Machines Repaired . | . . . Machines Dismantled . | . . . Machines Sabotaged . | . . . Overloaded Fab Kills . | . . . Hacking | -11 -10 -10 --------- Run | Yrd Mat Sub Machines Accessed 8 | . 7 1 Terminals 6 | . 6 . Fabricators . | . . . Repair Stations . | . . . Recycling Units 1 | . 1 . Scanalyzers . | . . . Garrison Access . | . . . Total Hacks 22 | . 18 4 Successful 13 | . 9 4 Failed 8 | . 8 . Catastrophic 1 | . 1 . Database Lockouts 1 | . 1 . Manual 15 | . 15 . Terminals 16 | . 16 . Fabricators . | . . . Repair Stations . | . . . Recycling Units 2 | . 2 . Scanalyzers . | . . . Garrison Access . | . . . Terminal Hacks 7 | . 3 4 Record 4 | . . 4 Robot Analysis 1 | . 1 . Prototype ID Bank 1 | . 1 . Emergency Access Points 1 | . 1 . Fabricator Hacks . | . . . Repair Station Hacks . | . . . Recycling Unit Hacks . | . . . Scanalyzer . | . . . Garrison Access Hacks . | . . . Unauthorized Hacks 6 | . 6 . Terminals 5 | . 5 . Skim 5 | . 5 . Fabricators . | . . . Repair Stations . | . . . Recycling Units 1 | . 1 . Tunnel 1 | . 1 . Scanalyzers . | . . . Garrison Access . | . . . Data Cores Recovered . | . . . Used . | . . . Hacking Detections 6 | . 6 . Full Trace Events . | . . . Feedback Events . | . . . Feedback Blocked . | . . . Robot Schematics Acquired . | . . . Robots Built . | . . . Authchips . | . . . Time . | . . . Total Robot Build Rating . | . . . Part Schematics Acquired . | . . . Parts Built . | . . . Authchips . | . . . Time . | . . . Total Part Build Rating . | . . . Parts Repaired . | . . . Time . | . . . Parts Recycled . | . . . Recycled Matter . | . . . Retrieved Matter . | . . . Retrieved Components . | . . . Parts Scanalyzed . | . . . Part Schematics Acquired . | . . . Parts Damaged . | . . . Bothacking | -11 -10 -10 ------------ Run | Yrd Mat Sub Used RIF Installer . | . . . Robots Hacked . | . . . Non-combat . | . . . Combat . | . . . Robot Hacks Applied . | . . . Relay Couplers Released . | . . . Fabnet Peak Effective % . | . . . Robots Rewired . | . . . Allies Hacked . | . . . Hacks Repelled . | . . . Allies | -11 -10 -10 -------- Run | Yrd Mat Sub Total Allies . | . . . Largest Group . | . . . Highest-Rated Group . | . . . Highest-Rated Ally . | . . . Total Orders . | . . . Ally Attacks . | . . . Total Damage . | . . . Kills . | . . . Allies Corrupted . | . . . Allies Melted . | . . . Intel | -11 -10 -10 ------- Run | Yrd Mat Sub Robot Analysis Total 1 | . 1 . Derelict Logs Recovered 2 | . . 2 Drone Launches . | . . . Drone Recoveries . | . . . Exploration | -11 -10 -10 ------------- Run | Yrd Mat Sub Turns Passed 13674 | 277 1345 12052 Spaces Moved 3393 | 134 496 2763 Core 2 | 2 . . Treads 3391 | 132 496 2763 Legs . | . . . Wheels . | . . . Hover . | . . . Flight . | . . . Fastest Speed 50 | 50 160 320 Average Speed 324 | 158 224 350 Slowest Speed 360 | 160 320 360 Overloaded Moves . | . . . Propulsion Burnouts . | . . . Robots Hopped . | . . . Cave-ins Triggered . | . . . Exploration Rate (%) 63 | 9 87 95 Regions Visited 2 Branch Regions 1 Pre-discovered Areas 3 | . 2 1 Known Exits Taken 1 | . 1 . Unknown Exits Taken 1 | 1 . . Scrap Searched 3 | . . 3 Spaces Dug 56 | . . 56 Terrain Destroyed 199 | . 64 135 Melee . | . . . Projectile 37 | . 1 36 AOE 162 | . 63 99 Terrain Rammed . | . . . Walls Destroyed . | . . . Machines Disabled . | . . . Actions | -11 -10 -10 --------- Run | Yrd Mat Sub Total 5678 | 164 619 4895 Wait 1954 | . 16 1938 Move 3391 | 133 495 2763 Hop . | . . . Pick Up 43 | 6 26 11 Fast Attach 7 | 7 . . Attach 9 | . 1 8 Detach . | . . . Swap 45 | . 12 33 Drop 21 | 2 9 10 Fire 207 | 16 59 132 Melee . | . . . Ram . | . . . Kick . | . . . Crush 1 | . 1 . Escape Stasis . | . . . Rewire . | . . . Trap . | . . . Miscellaneous . | . . . Route ------- -11/Scrapyard -10/Materials (discovered 6 exits: *Mat x3 / *Min x2 / *Sub) -10/Subcaves (discovered 3 exits: [*Mat x2] / [Rec]) History --------- Turn | Location | Event 10 | -11/Scrapyard | Discovered new exit (range 15) 278 | -11/Scrapyard | Entered Materials 278 | -10/Materials | Discovered new exit (range 7) 317 | -10/Materials | Build established: Mutant 489 | -10/Materials | Discovered new exit (range 7) 617 | -10/Materials | Discovered new exit (range 16) 680 | -10/Materials | Central database locked down 1250 | -10/Materials | Learned 4 Recycling zone layouts 1310 | -10/Materials | Learned 2 Mines zone layouts 1334 | -10/Materials | Discovered new exit (range 14) 1361 | -10/Materials | Learned location of 1 exit from Recycling 1456 | -10/Materials | Identified exit to Subcaves 1456 | -10/Materials | Identified exit to Mines 1456 | -10/Materials | Identified exit to Materials 1467 | -10/Materials | Learned 4 Subcaves zone layouts 1487 | -10/Materials | Learned location of 2 exits from Materials 1623 | -10/Materials | Entered Subcaves 1660 | -10/Subcaves | Learned location of Zion (-7) 1913 | -10/Subcaves | Discovered new exit (range 15) 2043 | -10/Subcaves | A Subdweller sparked back to life 2043 | -10/Subcaves | A Subdweller sparked back to life 2096 | -10/Subcaves | Found Prototype Leg 2321 | -10/Subcaves | Core integrity fell below 50% 2508 | -10/Subcaves | Learned Materials stockpile data 3233 | -10/Subcaves | Disturbed a concealed Subdweller 3388 | -10/Subcaves | Discovered new exit (range 11) 3527 | -10/Subcaves | Shifting Twisted Machinery released Barrage Gun 3539 | -10/Subcaves | Shifting Twisted Machinery released Multitool 3767 | -10/Subcaves | Visited Clippyterm 3777 | -10/Subcaves | Learned Factory trap positions 4324 | -10/Subcaves | Core integrity fell below 20% 4656 | -10/Subcaves | A swath of the cavern ceiling suddenly collapsed 6203 | -10/Subcaves | A swath of the cavern ceiling suddenly collapsed 10761 | -10/Subcaves | Discovered new exit (range 15) 12802 | -10/Subcaves | Ambushed by Subdweller buried in earth 12817 | -10/Subcaves | Shifting Twisted Machinery released Scrap Shield 12825 | -10/Subcaves | Shifting Twisted Machinery released Sub. Monowheel 13675 | -10/Subcaves | Destroyed by 6W-Y8M(R) with Subdweller Machine Gun Last Messages --------------- Machinery. 12858_ Subatomizers dissect the Disposable Heat Sink. 13045_ Subatomizers dissect the Sub. Monowheel. 13069_ Subatomizers dissect the Sub. Monowheel, destroying it. 13146_ S-10 Pest destroyed. 13151_ Dropped Broken Sub. Laser. 13153_ Lgt. Ion Engine fries itself beyond repair. 13172_ Subatomizers dissect the Broken Sub. Laser. 13172_ The unstable cave ceiling collapses. 13185_ Subatomizers dissect the Broken Sub. Laser. 13283_ Subatomizers dissect the Broken Sub. Laser, destroying it. 13632_ Extracted 4 energy. 13654_ 5J-SNG(R): "OHNO!" 6W-Y8M(R) emerges from concealment. Map ----- +----------------------------------------------------+ | ?????????????????????????????????????????????????? | | ?????????????????????????????????#??????????????#? | | ??????????????????????????????????????#????#?????? | | ??????????????#?#????????????????#??????????????#? | | ???????#????#??#??????????????????????#?#???????#? | | ?????????????#??????#?????????????##?????????????# | | ???#???????#??????????????#??#??????#?#??#?##???#? | | ?#?#??????????#????#?????#???????#???#???????#??#? | | ?#????????#??#?#?????#???????#????#????????#?????? | | ???????????##??????????#???#?#??????#?????????#?#? | | ???##??#??????###????#??##???#???????????????#??## | | ?#???#??????????#### ###????#??????????####??????? | | ??#??????????###" """""#?#?#?#???????### #####?#?? | | ??#??????####?" """ ##??#?#??#?????# ##?## | | ?#?????### ### %% ###???????#?### ##### | | ?#??#??# #???######## ###?## | | ??#??###"" " " "#??#?????## ""##??# | | #???#??# " # ????????# " "##?# | | ##???### # ? ?###?#?#??#?# """ ### | | ###??#" #"# #?###???#?###?### "" | | #?#?#" "####???????????#??# """" | | #?#?#"" """#???###?###?##????# """"""" | | #???###"" ""###?##?##??###???#?### "" " ## | | ##??####"" "####????############### ## " ### | | ####?###" " # ######??# ##; R ;###"###?#" # | | ####" """ ##! #####@ R ;## ######" | | " "! ## "# # | | """ # # # ## # / ;; "##" | | """"" ##### %! ;# [ ""#"" | | """= #?## # ####"# | | # " ## # ###??### ## #?### | | ## ##### ######??#?####### ### ##??# | | ?# ###### ###?????#???????# ### ##?# | | ?# ## ## ##?#???????##??## ## ## ### | | ?# #????#??#??????# ### ## # | | ?# ## ##?##??##?#?????#####?# | | ?### ### ####???????##????#??#???## | | ???###?### ##???#?##???????#?#??##??# | | ???????#####??##??##??????#????#????# | | ????????#?????#????#??#?#???????????#### ### ### | | #?#????#???#????##??##?#???????#???????#####?###?# | | ???#?????#?##?????????????#?????????????????#???#? | | ?#?#??#??#????#????#?#???????????????????????##??# | | ?????????????????????????????????????????????#???? | | ?????#???????????#?????????????????????#???????#?? | | ???????#???????????????????????????????????????##? | | ?#??#??????#????????????????????????????????????#? | | #????#????????#?#????????????????????????????????? | | ?##?????????#????????????????????????????????????? | | ?#??#?#???#?###?##???????????????????????????????? | +----------------------------------------------------+ Best States ------------- Heat Dissipation 35 Energy Generation 12 Energy Capacity 265 Matter Stores 300 Matter Capacity 300 Sight Range 16 Terrain Scan Range 16 Terrain Scan Density 10 Armor Coverage 225 Evasion (%) 40 Recoil Reduction 2 Item Schematics ----------------- None Robot Schematics ------------------ None Fabricated ------------ Nothing Alien Tech Used ----------------- None Achievements -------------- None Challenges ------------ None Game ------ Seed FieldPhysicsScrapsphere Manual? 0 Play Time 00:35:28 Cumulative 346.4 hours Start 2024.09.30 @ 15:13:08 End 2024.09.30 @ 15:47:48 Sessions 1 Manual Loads 0 Difficulty Rogue Special Mode None Game No. 252 Rogue 247 Adventurer 5 Explorer 0 Win Type - Total 7 Types 4/0/3/0/0/0/0/0/0 Lore% 68 Gallery% 85 Achievement% 70 Wizard Run 0 Options --------- Layout 2 ASCII 0 Keyboard 0 Movement Mouse Keybinds 0 Fullscreen 2 Font 24/Smallcaps Map View 50x44 Zoom Use 0% Tactical HUD 1 Map Filters NONE Filters NONE Steam 1 RUN: baebeabf-daf4-4323-9fb8-2e2205d32815